bitfinex-derivatives/quotes_BNBF0:USTF0_20230901
["timestamp","ask_amount","ask_price","bid_price","bid_amount"]
[1693584293471,0.17230956,213.67,212.95,0.86247126]
[1693584293670,0.17230956,213.67,212.96,0.86247126]
[1693584293871,0.17230956,213.67,212.97,0.86247126]
[1693584294071,0.17230956,213.67,212.92,0.86247126]
[1693584294271,0.17230956,213.67,212.93,0.86247126]
[1693584294472,0.17230956,213.67,212.94,0.86247126]
[1693584294673,0.17230956,213.67,212.95,0.86247126]
[1693584294875,0.17230956,213.67,212.96,0.86247126]
[1693584295169,0.17230956,213.67,212.97,0.86247126]
[1693584295372,5.26258695,213.67,212.98,0.86247126]
[1693584295572,0.17230956,213.66,212.99,0.86247126]
[1693584295875,0.17230956,213.66,213.0,0.86247126]
[1693584296075,5.26258695,213.66,213.01,0.86247126]
[1693584296375,5.26258695,213.66,212.92,0.07689994]
[1693584296376,5.26258695,213.65,212.93,0.07689994]
[1693584296575,0.17230956,213.64,212.94,0.86249515]
[1693584297970,0.17230956,213.64,212.95,0.86249515]
[1693584298273,0.17230956,213.64,212.96,0.86249515]
[1693584298576,0.17230956,213.64,212.97,0.86249515]
[1693584298875,0.17230956,213.64,212.98,0.86249515]
[1693584299075,0.17230956,213.64,212.99,0.86249515]
[1693584299275,5.09027739,213.63,213.0,0.86249515]
[1693584299575,7.12638835,213.66,213.01,0.86249515]
[1693584299576,5.26258695,213.62,213.01,0.86249515]
[1693584299780,0.17230956,213.61,212.96,0.93939509]
[1693584300079,0.17230956,213.61,212.97,0.86250387]
[1693584300576,0.17230956,213.61,212.98,0.86250387]
[1693584300974,5.09027739,213.6,212.98,0.86250387]
[1693584301174,0.17230956,213.59,212.98,0.86250387]
[1693584302178,0.17230956,213.59,212.99,0.86250387]
[1693584302375,0.17230956,213.59,213.0,0.86250387]
[1693584302581,0.17230956,213.59,212.99,0.07689994]
[1693584302773,0.17230956,213.59,213.0,0.86249054]
[1693584302974,5.09027739,213.57,213.0,0.86249054]
[1693584303177,0.17230956,213.56,213.0,0.86249054]
[1693584303680,0.17230956,213.56,213.02,0.07689994]
[1693584303980,5.09027739,213.54,213.03,0.07689994]
[1693584304173,0.17230956,213.53,213.03,0.07689994]
[1693584305778,0.17230956,213.53,213.04,0.07689994]
[1693584307579,5.26258695,213.53,213.05,0.07689994]
[1693584307777,0.17230956,213.52,213.05,0.07689994]
[1693584308379,0.17230956,213.52,213.06,0.07689994]
[1693584308776,5.26258695,213.52,213.06,0.07689994]
[1693584308982,0.17230956,213.51,213.06,0.07689994]
[1693584309382,0.17230956,213.51,213.07,0.07689994]
[1693584309581,0.17230956,213.52,213.09,0.07689994]
[1693584309779,0.17230956,213.51,213.09,0.07689994]
[1693584309983,0.17230956,213.5,213.09,0.07689994]
[1693584310184,0.17230956,213.49,213.09,0.07689994]
[1693584310385,0.17230956,213.48,213.09,0.07689994]
[1693584310587,5.09027739,213.5,213.09,0.07689994]
[1693584310887,0.17230956,213.49,213.09,0.07689994]
[1693584312380,0.17230956,213.49,213.1,0.07689994]
[1693584313382,0.17230956,213.5,213.1,0.07689994]
[1693584313583,0.17230956,213.49,213.1,0.07689994]
[1693584313779,0.17230956,213.48,213.1,0.07689994]
[1693584313981,0.17230956,213.5,213.1,0.07689994]
[1693584314185,0.17230956,213.49,213.11,0.07689994]
[1693584314387,0.17230956,213.48,213.11,0.07689994]
[1693584314686,0.17230956,213.47,213.11,0.07689994]
[1693584314885,0.17230956,213.46,213.11,0.07689994]
[1693584315088,0.17230956,213.51,213.11,0.07689994]
[1693584315288,0.17230956,213.5,213.12,0.07689994]
[1693584315590,0.17230956,213.49,213.11,0.07689994]
[1693584315781,0.17230956,213.52,213.11,0.07689994]
[1693584315984,0.17230956,213.51,213.11,0.07689994]
[1693584316182,0.17230956,213.5,213.11,0.07689994]
[1693584316385,0.17230956,213.52,213.11,0.07689994]
[1693584316689,0.17230956,213.51,213.11,0.07689994]
[1693584316890,0.17230956,213.52,213.11,0.07689994]
[1693584317082,0.17230956,213.51,213.11,0.07689994]
[1693584317288,0.17230956,213.5,213.11,0.07689994]
[1693584317588,0.17230956,213.49,213.11,0.07689994]
[1693584317785,0.17230956,213.54,213.11,0.07689994]
[1693584317982,0.17230956,213.53,213.11,0.07689994]
[1693584318188,5.09027739,213.55,213.11,0.07689994]
[1693584318189,0.17230956,213.52,213.11,0.07689994]
[1693584318388,0.17230956,213.51,213.11,0.07689994]
[1693584318690,0.17230956,213.5,213.1,0.07689994]
[1693584318985,0.17230956,213.49,213.1,0.07689994]
[1693584319189,0.17230956,213.53,213.1,0.07689994]
[1693584319389,0.17230956,213.52,213.1,0.07689994]
[1693584319589,0.17230956,213.51,213.1,0.07689994]
[1693584319790,0.17230956,213.53,213.1,0.07689994]
[1693584320090,0.17230956,213.52,213.1,0.07689994]
[1693584320290,0.17230956,213.53,213.1,0.07689994]
[1693584320486,0.17230956,213.52,213.09,0.07689994]
[1693584320691,0.17230956,213.51,213.09,0.07689994]
[1693584320892,0.17230956,213.53,213.09,0.07689994]
[1693584321092,0.17230956,213.52,213.09,0.07689994]
[1693584321293,0.17230956,213.51,213.09,0.07689994]
[1693584321494,5.26258695,213.53,213.09,0.07689994]
[1693584321688,0.17230956,213.52,213.08,0.07689994]
[1693584323587,0.17230956,213.52,213.07,0.07689994]
[1693584324195,0.17230956,213.52,213.06,0.07689994]
[1693584324494,0.17230956,213.52,213.05,0.07689994]
[1693584324888,0.17230956,213.52,213.04,0.07689994]
[1693584325495,0.17230956,213.52,213.03,0.07689994]
[1693584325794,0.17230956,213.52,213.09,0.07689994]
[1693584325995,0.17230956,213.51,213.09,0.07689994]
[1693584326297,0.17230956,213.5,213.09,0.07689994]
[1693584326595,0.17230956,213.49,213.08,0.07689994]
[1693584326798,0.17230956,213.57,213.09,0.86211741]
[1693584327297,0.17230956,213.57,213.08,0.07689994]
[1693584327495,0.17230956,213.57,213.06,0.07689994]
[1693584327697,0.17230956,213.57,213.07,0.86212844]
[1693584327896,5.26258695,213.57,213.07,0.86212844]
[1693584328195,0.17230956,213.56,213.07,0.86212844]
[1693584328596,5.26258695,213.56,213.07,0.86212844]
[1693584328789,5.26258695,213.56,213.04,0.07689994]
[1693584328790,0.17230956,213.55,213.05,0.86212844]
[1693584329798,0.17230956,213.56,213.05,0.86212844]
[1693584330100,0.17230956,213.55,213.05,0.86212844]
[1693584330299,0.17230956,213.54,213.05,0.86212844]
[1693584330597,0.17230956,213.53,213.05,0.86212844]
[1693584330799,0.17230956,213.53,213.03,0.07689994]
[1693584330800,0.17230956,213.56,213.04,0.86212844]
[1693584331000,0.17230956,213.55,213.05,0.86212844]
[1693584331302,0.17230956,213.54,213.06,0.86212844]
[1693584331497,0.17230956,213.56,213.04,0.86212844]
[1693584332500,0.17230956,213.55,213.04,0.86212844]
[1693584332699,0.17230956,213.57,213.04,0.86212844]
[1693584332894,0.17230956,213.56,213.04,0.86212844]
[1693584333099,0.17230956,213.55,213.04,0.86212844]
[1693584333301,0.17230956,213.57,213.04,0.86212844]
[1693584333505,0.17230956,213.56,213.04,0.86212844]
[1693584333702,0.17230956,213.57,213.03,0.86212844]
[1693584334002,0.17230956,213.57,213.03,0.93902838]
[1693584334201,0.17230956,213.57,213.04,0.86212844]
[1693584334401,5.26258695,213.57,213.04,0.86212844]
[1693584334594,0.17230956,213.56,213.03,0.86212844]
[1693584335500,0.17230956,213.55,213.03,0.86212844]
[1693584335703,0.17230956,213.57,213.03,0.86212844]
[1693584337999,0.17230956,213.57,213.03,0.93902838]
[1693584338205,0.17230956,213.57,213.04,0.86212844]
[1693584339206,0.17230956,213.57,213.05,0.86212844]
[1693584339404,0.17230956,213.57,213.03,0.93902838]
[1693584339604,0.17230956,213.57,213.06,0.86212844]
[1693584339802,0.17230956,213.57,213.07,0.86212844]
[1693584340105,0.17230956,213.57,213.08,0.86212844]
[1693584340302,0.17230956,213.57,213.03,0.07689994]
[1693584340607,0.17230956,213.57,213.04,0.86213349]
[1693584341508,0.17230956,213.57,213.05,0.86213349]
[1693584341707,0.17230956,213.57,213.03,0.86213349]
[1693584341908,0.17230956,213.57,213.04,0.86213349]
[1693584342207,0.17230956,213.57,213.05,0.86213349]
[1693584342408,5.26258695,213.57,213.03,0.86213349]
[1693584342608,0.17230956,213.56,213.04,0.86213349]
[1693584343509,5.26258695,213.56,213.04,0.93903343]
[1693584343807,0.17230956,213.55,213.05,0.86213349]
[1693584345305,0.17230956,213.55,213.04,0.86213349]
[1693584345509,0.17230956,213.55,213.05,0.86213349]
[1693584346508,0.17230956,213.55,213.05,0.93903343]
[1693584346708,5.26258695,213.55,213.06,0.86213349]
[1693584346909,0.17230956,213.54,213.0,0.07689994]
[1693584347103,0.17230956,213.54,213.01,0.86238735]
[1693584347609,7.12638835,213.53,213.01,0.86238735]
[1693584347909,0.17230956,213.52,212.99,0.07689994]
[1693584348112,5.09027739,213.5,213.0,0.86239696]
[1693584348312,0.17230956,213.49,213.0,0.86239696]
[1693584349312,5.26258695,213.49,213.0,0.86239696]
[1693584349515,0.17230956,213.48,213.0,0.86239696]
[1693584350916,0.17230956,213.48,212.99,0.86239696]
[1693584351116,0.17230956,213.49,213.0,0.86242357]
[1693584351315,0.17230956,213.48,212.99,0.86242357]
[1693584351516,0.17230956,213.47,213.0,0.86242251]
[1693584351716,0.17230956,213.46,212.98,0.07689994]
[1693584351916,0.17230956,213.45,212.99,0.86242318]
[1693584352116,5.26258695,213.49,212.99,0.86242318]
[1693584352321,0.17230956,213.48,212.99,0.86242318]
[1693584353714,0.17230956,213.48,212.98,0.86242318]
[1693584353915,0.17230956,213.48,212.99,0.86242318]
[1693584354115,0.17230956,213.48,213.0,0.86242318]
[1693584354518,0.17230956,213.47,212.97,0.07689994]
[1693584354718,0.17230956,213.46,212.98,0.86242547]
[1693584355015,0.17230956,213.45,212.98,0.86242547]
[1693584355219,0.17230956,213.44,212.98,0.86242547]
[1693584355416,0.17230956,213.49,212.98,0.86242547]
[1693584355722,0.17230956,213.48,212.99,0.86242547]
[1693584355922,0.17230956,213.47,213.0,0.86242547]
[1693584356122,0.17230956,213.46,212.96,0.07689994]
[1693584356322,5.09027739,213.5,212.97,0.93932567]
[1693584356323,0.17230956,213.45,212.97,0.93932567]
[1693584356623,0.17230956,213.44,212.98,0.86242573]
[1693584356816,0.17230956,213.49,212.97,0.86242573]
[1693584357017,0.17230956,213.48,212.98,0.86242573]
[1693584357216,0.17230956,213.48,212.96,0.07689994]
[1693584357217,0.17230956,213.47,212.99,0.86242573]
[1693584357520,0.17230956,213.46,213.0,0.86242573]
[1693584357721,0.17230956,213.45,212.96,0.07689994]
[1693584358221,0.17230956,213.44,212.97,0.86242793]
[1693584358421,0.17230956,213.49,212.97,0.86242793]
[1693584358615,0.17230956,213.48,212.97,0.86242793]
[1693584358819,0.17230956,213.47,212.97,0.86242793]
[1693584359020,0.17230956,213.46,212.97,0.86242793]
[1693584359318,0.17230956,213.45,212.97,0.86242793]
[1693584359519,0.17230956,213.44,212.97,0.86242793]
[1693584359722,0.17230956,213.43,212.98,0.86242793]
[1693584359924,0.17230956,213.49,212.96,0.86242793]
[1693584360118,0.17230956,213.48,212.97,0.86242793]
[1693584360320,0.17230956,213.5,212.96,0.86242793]
[1693584360524,0.17230956,213.49,212.97,0.86242793]
[1693584360825,0.17230956,213.48,212.98,0.86242793]
[1693584361026,0.17230956,213.47,212.99,0.86242793]
[1693584361224,0.17230956,213.46,213.0,0.86242793]
[1693584361425,0.17230956,213.5,212.96,0.86242793]
[1693584361621,0.17230956,213.49,212.97,0.86243009]
[1693584361822,0.17230956,213.5,212.96,0.86243009]
[1693584362019,0.17230956,213.49,212.97,0.86243009]
[1693584362224,0.17230956,213.48,212.98,0.86243009]
[1693584362423,0.17230956,213.47,212.99,0.86243009]
[1693584362623,0.17230956,213.5,212.96,0.86243009]
[1693584362823,0.17230956,213.49,212.97,0.86243009]
[1693584363019,0.17230956,213.5,212.96,0.86243009]
[1693584363224,0.17230956,213.49,212.97,0.86243009]
[1693584363426,0.17230956,213.48,212.98,0.86243009]
[1693584363621,0.17230956,213.47,212.99,0.86243009]
[1693584363821,0.17230956,213.5,212.96,0.86243009]
[1693584364126,0.17230956,213.49,212.97,0.86243009]
[1693584364326,0.17230956,213.48,212.98,0.86243009]
[1693584364522,0.17230956,213.5,212.99,0.86243009]
[1693584364728,0.17230956,213.49,212.96,0.86243009]
[1693584364921,0.17230956,213.49,212.95,0.07689994]
[1693584364922,0.17230956,213.48,212.97,0.86243009]
[1693584365121,0.17230956,213.47,212.98,0.86243009]
[1693584365321,0.17230956,213.46,212.99,0.86243009]
[1693584365525,0.17230956,213.5,212.96,0.86243009]
[1693584365726,0.17230956,213.49,212.97,0.86243009]
[1693584366027,0.17230956,213.48,212.98,0.86243009]
[1693584366221,0.17230956,213.47,212.99,0.86243009]
[1693584366427,0.17230956,213.5,212.96,0.86243009]
[1693584366630,0.17230956,213.49,212.97,0.86243009]
[1693584366826,0.17230956,213.48,212.98,0.86243009]
[1693584367029,0.17230956,213.47,212.99,0.86243009]
[1693584367224,0.17230956,213.5,212.96,0.86243009]
[1693584367423,0.17230956,213.49,212.97,0.86243009]
[1693584367629,0.17230956,213.5,212.97,0.86243009]
[1693584367932,0.17230956,213.49,212.97,0.93933003]
[1693584368132,0.17230956,213.51,212.98,0.86243009]
[1693584368429,0.17230956,213.5,213.01,0.07689994]
[1693584368634,0.17230956,213.49,213.02,0.93933003]
[1693584368926,0.17230956,213.48,213.03,0.86243009]
[1693584369130,0.17230956,213.47,213.03,0.86243009]
[1693584369331,0.17230956,213.57,213.03,0.86243009]
[1693584369531,5.09027739,213.58,213.03,0.93933003]
[1693584369532,0.17230956,213.56,213.03,0.93933003]
[1693584369730,0.17230956,213.57,213.04,0.86243009]
[1693584369928,0.17230956,213.56,213.04,0.86243009]
[1693584370125,0.17230956,213.57,213.04,0.86243009]
[1693584370328,0.17230956,213.56,213.04,0.86243009]
[1693584370530,0.17230956,213.56,213.03,0.86243009]
[1693584370731,0.17230956,213.56,213.04,0.86243009]
[1693584370933,0.17230956,213.56,213.03,0.86243009]
[1693584371232,0.17230956,213.56,213.04,0.86243009]
[1693584371432,0.17230956,213.56,213.03,0.86243009]
[1693584371633,0.17230956,213.56,213.04,0.86243009]
[1693584371833,0.17230956,213.56,213.05,0.86243009]
[1693584372133,0.17230956,213.56,213.06,0.86243009]
[1693584372432,0.17230956,213.56,213.07,0.86243009]
[1693584372625,0.17230956,213.56,213.02,0.07689994]
[1693584372827,0.17230956,213.56,213.03,0.86216188]
[1693584374434,5.26258695,213.56,213.03,0.86216188]
[1693584374631,0.17230956,213.55,213.03,0.86216188]
[1693584375727,0.17230956,213.54,213.09,0.07661129]
[1693584375932,0.17230956,213.53,213.11,0.07661129]
[1693584376132,0.17230956,213.64,213.12,0.86216188]
[1693584376335,0.17230956,213.63,213.12,0.93877317]
[1693584376633,0.17230956,213.62,213.13,0.86216188]
[1693584376829,0.17230956,213.61,213.13,0.86216188]
[1693584377035,0.17230956,213.6,213.13,0.86216188]
[1693584377331,0.17230956,213.59,213.14,0.86216188]
[1693584377536,0.17230956,213.58,213.15,0.86216188]
[1693584377737,0.17230956,213.57,213.16,0.86216188]
[1693584377937,0.17230956,213.68,213.11,0.86216188]
[1693584378133,0.17230956,213.67,213.12,0.86178391]
[1693584378330,0.17230956,213.66,213.13,0.86178391]
[1693584378537,0.17230956,213.66,213.09,0.07661129]
[1693584378538,0.17230956,213.71,213.1,0.86178391]
[1693584378838,0.17230956,213.7,213.11,0.86178391]
[1693584379037,0.17230956,213.69,213.11,0.86178391]
[1693584379335,0.17230956,213.68,213.11,0.86178391]
[1693584379530,0.17230956,213.67,213.11,0.86178391]
[1693584379736,0.17230956,213.72,213.11,0.86178391]
[1693584379937,0.17230956,213.71,213.11,0.86178391]
[1693584380138,0.17230956,213.7,213.11,0.86178391]
[1693584380335,0.17230956,213.72,213.11,0.86178391]
[1693584380535,0.17230956,213.71,213.12,0.86178391]
[1693584380734,0.17230956,213.7,213.13,0.86178391]
[1693584381037,0.17230956,213.69,213.14,0.86178391]
[1693584381235,0.17230956,213.68,213.15,0.86178391]
[1693584381435,0.17230956,213.78,213.1,0.86178391]
[1693584381636,0.17230956,213.77,213.11,0.86178391]
[1693584381831,0.17230956,213.76,213.12,0.86178391]
[1693584382031,0.17230956,213.78,213.1,0.86178391]
[1693584382336,0.17230956,213.77,213.1,0.86178391]
[1693584382536,0.17230956,213.78,213.1,0.86178391]
[1693584382737,0.17230956,213.77,213.1,0.86178391]
[1693584382937,0.17230956,213.76,213.11,0.86178391]
[1693584383137,0.17230956,213.75,213.12,0.86178391]
[1693584383338,0.17230956,213.74,213.13,0.86178391]
[1693584383534,0.17230956,213.78,213.09,0.86178391]
[1693584383732,0.17230956,213.73,213.14,0.86178391]
[1693584383932,0.17230956,213.72,213.15,0.86178391]
[1693584384238,0.17230956,213.71,213.16,0.86178391]
[1693584384436,0.17230956,213.79,213.08,0.86178391]
[1693584384637,7.12401105,213.84,213.09,0.86178391]
[1693584384638,0.17230956,213.78,213.09,0.86178391]
[1693584384840,0.17230956,213.77,213.1,0.86178391]
[1693584385141,0.17230956,213.76,213.11,0.86178391]
[1693584385338,0.17230956,213.75,213.12,0.86178391]
[1693584385641,0.17230956,213.74,213.13,0.86178391]
[1693584385940,0.17230956,213.73,213.14,0.86178391]
[1693584386132,0.17230956,213.73,213.06,0.07661129]
[1693584386133,0.17230956,213.72,213.15,0.86178391]
[1693584386440,0.17230956,213.71,213.16,0.86178391]
[1693584386636,0.17230956,213.7,213.17,0.86178391]
[1693584386833,0.17230956,213.82,213.18,0.86178391]
[1693584387038,0.17230956,213.81,213.07,3.75213309]
[1693584387334,0.17230956,213.8,213.22,0.07661129]
[1693584387538,0.17230956,213.79,213.25,0.07661129]
[1693584387733,5.08857932,214.1,213.26,0.86152734]
[1693584387734,0.17230956,213.78,213.26,0.86152734]
[1693584387936,0.17230956,213.77,213.26,0.86152734]
[1693584388136,0.17230956,213.76,213.26,4.69027172]
[1693584388337,0.17230956,214.09,213.27,4.61366043]
[1693584388538,0.17230956,214.08,213.28,4.61366043]
[1693584388733,0.17230956,214.07,213.29,4.61366043]
[1693584389040,0.17230956,214.06,213.3,0.86152734]
[1693584389240,0.17230956,214.05,213.31,0.86152734]
[1693584389442,0.17230956,214.09,213.22,0.86152734]
[1693584389641,0.17230956,214.08,213.22,3.74906889]
[1693584389840,0.17230956,214.07,213.23,4.61059623]
[1693584390039,0.17230956,214.11,213.24,0.86152734]
[1693584390244,0.17230956,214.1,213.25,0.86152734]
[1693584390534,0.17230956,214.09,213.26,0.86152734]
[1693584390740,0.17230956,214.08,213.27,0.86152734]
[1693584390941,0.17230956,214.13,213.18,0.86152734]
[1693584391134,0.17230956,214.16,213.18,0.86152734]
[1693584391338,0.17230956,214.15,213.18,0.86152734]
[1693584391640,0.17230956,214.14,213.19,0.86152734]
[1693584391838,0.17230956,214.13,213.2,0.86152734]
[1693584392039,0.17230956,214.16,213.15,0.86152734]
[1693584392241,0.17230956,214.15,213.14,0.07661129]
[1693584392440,0.17230956,214.14,213.15,0.86152734]
[1693584392741,0.17230956,214.13,213.15,0.86152734]
[1693584392943,0.17230956,214.12,213.15,0.86152734]
[1693584393240,0.17230956,214.11,213.15,0.86152734]
[1693584393434,0.17230956,214.18,213.13,0.86152734]
[1693584393633,0.17230956,214.17,213.14,0.86152734]
[1693584393844,0.17230956,214.16,213.15,0.86152734]
[1693584394040,0.17230956,214.15,213.16,0.86152734]
[1693584394237,0.17230956,214.2,213.17,0.86152734]
[1693584394432,0.17230956,214.19,213.17,4.61059623]
[1693584394638,0.17230956,214.18,213.18,4.61059623]
[1693584394834,0.17230956,214.17,213.19,4.61059623]
[1693584395041,0.17230956,214.22,213.12,0.86152734]
[1693584395337,0.17230956,214.21,213.11,0.07661129]
[1693584395541,0.17230956,214.2,213.12,0.86152734]
[1693584395735,0.17230956,214.22,213.12,0.93813863]
[1693584395937,0.17230956,214.21,213.13,0.86152734]
[1693584396139,0.17230956,214.2,213.14,0.86152734]
[1693584396439,0.17230956,214.19,213.14,0.86152734]
[1693584396638,0.17230956,214.23,213.11,0.93813863]
[1693584396842,0.17230956,214.22,213.12,4.61059623]
[1693584397042,0.17230956,214.23,213.13,4.61059623]
[1693584397243,0.17230956,214.22,213.14,4.61059623]
[1693584397537,0.17230956,214.21,213.15,4.61059623]
[1693584397739,0.17230956,214.2,213.16,4.61059623]
[1693584397942,0.17230956,214.2,212.87,1.02148394]
[1693584397943,0.17230956,214.19,213.17,4.61059623]
[1693584398142,0.17230956,214.19,213.18,4.61059623]
[1693584398344,0.17230956,214.19,213.11,0.07529881]
[1693584398345,0.17230956,214.18,213.19,4.61059623]
[1693584398643,0.17230956,214.17,213.2,4.61059623]
[1693584398844,0.17230956,214.16,213.21,4.61059623]
[1693584399144,0.17230956,214.15,213.22,4.61059623]
[1693584399344,0.17230956,214.14,213.23,4.61059623]
[1693584399550,0.17230956,214.13,213.24,4.61059623]
[1693584399846,0.17230956,214.12,213.25,4.61059623]
[1693584400045,0.17230956,214.11,213.26,4.61059623]
[1693584400241,0.17230956,214.23,213.12,0.86152734]
[1693584400447,0.17230956,214.22,213.11,0.07529881]
[1693584400642,0.17230956,214.23,213.12,0.86152734]
[1693584400847,0.17230956,214.22,213.12,0.86152734]
[1693584402146,0.17230956,214.22,213.12,0.93682615]
[1693584402342,0.17230956,214.22,213.13,4.61059623]
[1693584402547,5.00945109,214.2,213.13,0.86152734]
[1693584402742,5.00945109,214.2,213.11,0.07529881]
[1693584402743,0.17230956,214.19,213.14,0.86152734]
[1693584402946,0.17230956,214.19,213.15,0.86152734]
[1693584403147,0.17230956,214.2,213.13,0.86152734]
[1693584403346,0.17230956,214.19,213.14,0.86152734]
[1693584403542,0.17230956,214.18,213.14,4.61059623]
[1693584403742,0.17230956,214.2,213.14,0.86152734]
[1693584403947,0.17230956,214.19,213.15,0.86152734]
[1693584404143,5.00945109,214.19,213.16,0.86152734]
[1693584404344,0.17230956,214.18,213.17,0.86152734]
[1693584404550,0.17230956,214.18,213.14,0.86152734]
[1693584404852,0.17230956,214.18,213.15,0.86152734]
[1693584405152,5.18176065,214.18,213.16,0.86152734]
[1693584405451,0.17230956,214.17,213.16,0.86152734]
[1693584405647,0.17230956,214.17,213.17,0.86152734]
[1693584405951,0.17230956,214.17,213.18,0.86152734]
[1693584406151,0.17230956,214.18,213.19,0.86152734]
[1693584406352,0.17230956,214.18,213.2,0.86152734]
[1693584406548,0.17230956,214.18,213.17,0.86152734]
[1693584406747,0.17230956,214.18,213.18,0.86152734]
[1693584406946,0.17230956,214.18,213.19,0.86152734]
[1693584407147,5.00945109,214.17,213.16,0.93682615]
[1693584407349,0.17230956,214.16,213.17,4.61059623]
[1693584407545,5.00945109,214.15,213.18,0.07529881]
[1693584407853,0.17230956,214.14,213.19,0.86152734]
[1693584408053,0.17230956,214.15,213.2,0.86152734]
[1693584408250,0.17230956,214.14,213.21,0.86152734]
[1693584408451,0.17230956,214.13,213.22,0.86152734]
[1693584408651,0.17230956,214.15,213.19,0.86152734]
[1693584408855,0.17230956,214.14,213.2,0.86152734]
[1693584409054,0.17230956,214.15,213.21,0.86152734]
[1693584409246,5.00945109,214.13,213.22,0.86152734]
[1693584409449,0.17230956,214.12,213.21,0.86152734]
[1693584409650,0.17230956,214.12,213.22,0.86152734]
[1693584409849,0.17230956,214.12,213.23,0.86152734]
[1693584410046,0.17230956,214.12,213.23,3.74906889]
[1693584410246,0.17230956,214.12,213.23,0.07529881]
[1693584410449,0.17230956,214.12,213.24,0.86152734]
[1693584410645,5.00945109,214.1,213.24,4.61059623]
[1693584410848,0.17230956,214.09,213.24,0.86152734]
[1693584411053,0.17230956,214.09,213.25,0.86152734]
[1693584411244,0.17230956,214.09,213.26,0.86152734]
[1693584411445,0.17230956,214.09,213.27,0.86152734]
[1693584411650,0.17230956,214.09,213.24,0.86152734]
[1693584411951,0.17230956,214.09,213.23,0.07529881]
[1693584412152,0.17230956,214.09,213.24,0.86152734]
[1693584412352,0.17230956,214.09,213.24,0.93682615]
[1693584412553,0.17230956,214.09,213.25,0.86152734]
[1693584412752,0.17230956,214.09,213.02,3.74906889]
[1693584412753,0.17230956,214.09,213.16,0.07529881]
[1693584412952,5.00945109,213.98,213.17,0.86152734]
[1693584413152,5.00945109,213.98,213.14,0.07529881]
[1693584413153,0.17230956,213.97,213.15,0.86152734]
[1693584413354,0.17230956,213.97,213.16,0.86152734]
[1693584413654,0.17230956,213.97,213.17,0.86152734]
[1693584413854,0.17230956,213.97,213.14,0.86152734]
[1693584414352,5.00945109,213.94,213.14,0.86152734]
[1693584414555,0.17230956,213.93,213.13,0.86152734]
[1693584414754,0.17230956,213.93,213.14,0.86152734]
[1693584414952,0.17230956,213.93,213.15,0.86152734]
[1693584415148,0.17230956,213.93,213.12,0.07529881]
[1693584415149,0.17230956,213.93,213.13,0.86152734]
[1693584415351,0.17230956,213.93,213.14,0.86152734]
[1693584415553,0.17230956,213.93,213.13,0.86152734]
[1693584415754,5.00945109,213.91,213.14,0.86152734]
[1693584416058,0.17230956,213.9,213.13,0.86152734]
[1693584416259,0.17230956,213.9,213.14,0.86152734]
[1693584416857,0.17230956,213.9,213.15,0.86152734]
[1693584417060,0.17230956,213.9,213.13,0.86152734]
[1693584417256,0.17230956,213.9,213.14,0.86152734]
[1693584417461,0.17230956,213.9,213.13,0.86152734]
[1693584417660,5.00945109,213.86,213.13,0.86152734]
[1693584417856,5.00945109,213.86,213.06,0.07529881]
[1693584417857,0.17230956,213.85,213.07,0.86152734]
[1693584418056,0.17230956,213.85,213.08,0.86152734]
[1693584418258,0.17230956,213.85,213.07,0.93682615]
[1693584418461,0.17230956,213.85,213.08,0.86152734]
[1693584418859,5.00945109,213.83,213.08,0.86152734]
[1693584419163,0.17230956,213.82,213.08,0.86152734]
[1693584419558,0.17230956,213.82,213.07,0.86152734]
[1693584419762,0.17230956,213.82,213.08,0.86152734]
[1693584420064,0.17230956,213.82,213.09,0.86152734]
[1693584420260,0.17230956,213.82,213.1,0.86152734]
[1693584420458,0.17230956,213.82,213.07,0.86152734]
[1693584420659,0.17230956,213.82,213.08,0.86152734]
[1693584420857,0.17230956,213.83,213.07,0.93682615]
[1693584421063,0.17230956,213.83,213.08,0.93682615]
[1693584421263,0.17230956,213.84,213.14,0.07529881]
[1693584421457,0.17230956,213.83,213.15,0.86152734]
[1693584421663,0.17230956,213.82,213.15,0.86152734]
[1693584421859,0.17230956,213.81,213.15,0.86152734]
[1693584422061,0.17230956,213.86,213.15,0.86152734]
[1693584422264,0.17230956,213.85,213.15,0.86152734]
[1693584422465,0.17230956,213.87,213.14,0.86152734]
[1693584423460,0.17230956,213.87,213.12,0.07529881]
[1693584423461,0.17230956,213.87,213.15,0.86152734]
[1693584423766,0.17230956,213.87,213.16,0.86152734]
[1693584423967,0.17230956,213.87,213.13,0.86152734]
[1693584424165,0.17230956,213.87,213.14,0.86152734]
[1693584424361,0.17230956,213.88,213.13,0.86152734]
[1693584425368,0.17230956,213.88,213.14,0.86152734]
[1693584425564,0.17230956,213.89,213.15,0.86152734]
[1693584425870,0.17230956,213.88,213.16,0.86152734]
[1693584426067,0.17230956,213.9,213.13,0.86152734]
[1693584426267,0.17230956,213.89,213.14,0.86152734]
[1693584426462,0.17230956,213.88,213.15,0.86152734]
[1693584426669,0.17230956,213.9,213.12,0.86152734]
[1693584426869,0.17230956,213.89,213.13,0.86152734]
[1693584427064,0.17230956,213.9,213.12,0.86152734]
[1693584427371,0.17230956,213.9,213.13,0.86152734]
[1693584427563,0.17230956,213.9,213.06,0.86152734]
[1693584427768,5.00945109,213.85,213.07,0.86152734]
[1693584427970,0.17230956,213.84,213.06,0.86152734]